bitfinex-derivatives/quotes_SOLF0:USTF0_20241224
["timestamp","ask_amount","ask_price","bid_price","bid_amount"]
[1735012773269,7.7217872,190.11,190.01,57.49693708]
[1735012773468,7.7217872,190.11,190.02,8.7122105]
[1735012773672,7.7217872,190.11,190.03,12.37724962]
[1735012773867,7.7217872,190.11,190.03,7.7217872]
[1735012774376,2.6341,190.09,190.04,2.6348]
[1735012774577,7.7217872,190.12,190.05,7.7217872]
[1735012775771,3.26,190.13,190.05,7.7217872]
[1735012775977,7.7217872,190.12,190.05,7.7217872]
[1735012776679,2.634,190.1,190.05,10.3563872]
[1735012777774,10.9817872,190.13,190.06,7.7217872]
[1735012779480,2.6339,190.11,190.06,7.7217872]
[1735012781585,3.26,190.13,190.06,7.7217872]
[1735012781775,2.6339,190.11,190.06,7.7217872]
[1735012781974,7.7217872,190.11,190.04,7.7217872]
[1735012782472,2.6341,190.09,190.04,10.3565872]
[1735012782879,2.6341,190.09,190.05,4.66582049]
[1735012783080,2.6341,190.09,190.04,10.3565872]
[1735012783280,2.6341,190.09,190.05,4.66583138]
[1735012783481,2.6341,190.09,190.04,10.3565872]
[1735012784282,2.6343,190.08,190.04,7.7217872]
[1735012785083,7.7217872,190.09,190.02,10.3567872]
[1735012785277,7.7217872,190.09,190.03,4.6671702]
[1735012785478,7.7217872,190.09,190.04,4.6671702]
[1735012785678,7.7217872,190.09,190.02,10.3567872]
[1735012785881,7.7217872,190.09,190.03,4.66702767]
[1735012786083,7.7217872,190.09,190.04,4.66702767]
[1735012786284,7.7217872,190.09,190.02,10.3567872]
[1735012786487,2.6344,190.07,190.03,4.6669435]
[1735012786680,2.6344,190.07,190.02,10.3567872]
[1735012786881,2.6344,190.07,190.03,4.66700891]
[1735012787083,2.6344,190.07,190.02,10.3567872]
[1735012787284,2.6344,190.07,190.03,4.66622286]
[1735012787486,2.6344,190.07,190.02,10.3567872]
[1735012787687,2.6344,190.07,190.03,4.66576878]
[1735012787982,2.6344,190.07,190.02,7.7217872]
[1735012788183,2.6344,190.07,190.03,4.66530318]
[1735012788388,2.6347,190.05,190.0,1.5624]
[1735012788583,2.6347,190.05,190.01,4.66524835]
[1735012788778,2.6347,190.05,190.02,4.66524835]
[1735012788981,2.6347,190.05,190.0,9.2841872]
[1735012789181,2.6347,190.05,190.01,4.66590285]
[1735012789382,2.6347,190.05,190.0,9.2841872]
[1735012789586,2.6347,190.05,190.01,4.66531805]
[1735012789889,2.6347,190.05,190.0,11.9194872]
[1735012790086,2.6347,190.05,190.01,4.66531702]
[1735012790286,2.6347,190.05,190.0,11.9194872]
[1735012790488,2.6347,190.05,190.01,4.66475242]
[1735012790789,2.6347,190.05,190.0,11.9194872]
[1735012790983,2.6347,190.05,190.01,4.66478001]
[1735012791183,2.6347,190.05,190.0,11.9194872]
[1735012791385,2.6349,190.04,190.0,9.2841872]
[1735012792382,2.6349,190.04,190.01,4.66367755]
[1735012792583,2.6349,190.04,190.0,9.2841872]
[1735012792784,2.6349,190.04,190.01,4.66348098]
[1735012792984,2.6349,190.04,190.0,9.2841872]
[1735012793184,2.6349,190.04,190.01,4.66418127]
[1735012793584,2.6349,190.04,190.0,9.2841872]
[1735012793788,2.6349,190.04,190.01,4.66378601]
[1735012794087,2.6349,190.04,190.0,9.2841872]
[1735012794281,2.6349,190.04,190.01,4.66447329]
[1735012794488,2.6349,190.04,190.0,9.2841872]
[1735012794789,2.6349,190.04,190.01,4.66414741]
[1735012794983,2.635,190.03,190.0,9.2841872]
[1735012797688,2.6348,190.05,190.0,9.2841872]
[1735012797983,1.5032,190.09,190.0,9.2841872]
[1735012797984,1.5032,190.09,190.01,2.6351]
[1735012798190,1.5032,190.09,190.0,9.2841872]
[1735012798191,2.6342,190.09,190.04,7.7217872]
[1735012800092,2.6342,190.09,190.04,10.3565872]
[1735012800286,10.3559872,190.09,190.04,10.3565872]
[1735012800790,10.3559872,190.09,190.04,2.6348]
[1735012802192,10.3559872,190.09,190.02,10.3566872]
[1735012803187,7.7217872,190.09,190.02,10.3566872]
[1735012803391,7.7217872,190.07,190.02,2.6349]
[1735012804391,10.3561872,190.07,190.02,2.6349]
[1735012804593,10.3561872,190.07,190.0,9.2841872]
[1735012804793,10.3561872,190.07,190.01,7.2934561]
[1735012804993,10.3561872,190.07,190.01,2.6352]
[1735012805394,2.6344,190.07,190.01,2.6352]
[1735012805691,2.6344,190.07,190.01,10.3569872]
[1735012806998,7.7217872,190.08,190.01,10.3569872]
[1735012807699,7.7217872,190.06,190.0,2.6353]
[1735012808094,2.6348,190.04,189.99,10.3572872]
[1735012808296,7.7217872,190.06,189.99,10.3572872]
[1735012809002,2.6348,190.05,189.99,10.3572872]
[1735012810498,7.7217872,190.04,189.96,3.15]
[1735012810702,1.6543,190.14,190.02,7.7217872]
[1735012810902,7.7217872,190.11,190.04,7.7217872]
[1735012811297,2.6341,190.1,190.04,7.7217872]
[1735012811699,1.6543,190.14,190.04,7.7217872]
[1735012811898,12.0095872,190.14,190.08,2.6342]
[1735012812102,10.3552872,190.14,190.08,2.6342]
[1735012812297,7.7217872,190.14,190.08,7.7217872]
[1735012812506,10.3550872,190.16,190.09,2.634]
[1735012812900,2.6333,190.15,190.09,2.634]
[1735012815798,7.7217872,190.14,190.08,10.3559872]
[1735012816203,10.3552872,190.14,190.06,7.7217872]
[1735012816404,7.7217872,190.12,190.07,4.6526898]
[1735012816594,3.24,190.18,190.05,3.24]
[1735012816799,7.7217872,190.12,190.06,4.65383178]
[1735012816995,7.7217872,190.12,190.04,3.24]
[1735012817200,7.7217872,190.12,190.05,12.37566155]
[1735012817403,7.7217872,190.12,190.05,7.7217872]
[1735012817605,10.3554872,190.12,190.06,2.6345]
[1735012817805,1.5767,190.19,190.03,1.4988]
[1735012817806,7.7217872,190.1,190.03,1.4988]
[1735012818002,7.7217872,190.1,190.04,4.65559775]
[1735012818305,7.7217872,190.1,190.03,1.4988]
[1735012818506,7.7217872,190.1,190.04,4.65635096]
[1735012818706,7.7217872,190.1,190.03,1.4988]
[1735012818906,7.7217872,190.1,190.04,4.65644145]
[1735012819106,7.7217872,190.1,190.03,1.4988]
[1735012819302,7.7217872,190.1,190.04,4.65686157]
[1735012819507,2.6341,190.09,190.03,4.1337]
[1735012820008,2.6341,190.09,190.04,4.65719496]
[1735012820204,2.6341,190.09,190.03,4.1337]
[1735012820412,2.6341,190.09,190.04,4.65729048]
[1735012820703,2.6341,190.09,190.03,11.8554872]
[1735012821006,2.6341,190.09,190.04,4.65773393]
[1735012821201,2.6343,190.08,190.03,9.2205872]
[1735012821809,2.6345,190.06,189.99,3.24]
[1735012822005,2.6345,190.06,190.0,16.44047302]
[1735012822205,2.6345,190.06,190.01,4.65893762]
[1735012822403,7.7217872,190.04,190.02,4.65893762]
[1735012822602,7.7217872,190.04,189.98,7.7217872]
[1735012822803,7.7217872,190.04,189.99,4.66147114]
[1735012823001,10.3566872,190.04,189.98,10.3572872]
[1735012823201,7.7217872,190.04,189.98,10.3572872]
[1735012823404,7.7217872,190.04,189.98,7.7217872]
[1735012823604,2.6351,190.03,189.98,7.7217872]
[1735012823813,2.6351,190.03,189.96,9.2236872]
[1735012824010,2.6351,190.03,189.97,4.66146987]
[1735012824205,2.6351,190.03,189.98,4.66146987]
[1735012824406,2.6351,190.03,189.97,2.6357]
[1735012824605,2.6351,190.03,189.98,4.66166556]
[1735012824810,2.6351,190.03,189.97,2.6357]
[1735012825010,2.6351,190.03,189.98,4.66174309]
[1735012825208,2.6351,190.03,189.97,2.6357]
[1735012825509,2.6351,190.03,189.98,4.660561]
[1735012825708,2.6351,190.03,189.97,2.6357]
[1735012826402,7.7217872,190.02,189.97,2.6357]
[1735012826607,10.3568872,190.02,189.96,11.8595872]
[1735012827612,10.3570872,190.0,189.94,10.3578872]
[1735012827814,10.3570872,190.0,189.95,4.66021015]
[1735012828018,7.7217872,190.0,189.92,10.9617872]
[1735012828211,2.6355,189.99,189.93,4.66123456]
[1735012828411,2.6355,189.99,189.94,4.66123456]
[1735012828613,2.6355,189.99,189.92,13.5980872]
[1735012828911,2.6355,189.99,189.93,4.66042124]
[1735012829109,2.6355,189.99,189.93,2.6363]
[1735012830409,7.7217872,189.98,189.88,3.2168]
[1735012830615,2.6358,189.97,189.91,10.3582872]
[1735012831215,2.6361,189.95,189.89,10.3585872]
[1735012831413,7.7217872,189.96,189.89,7.7217872]
[1735012831610,7.7217872,189.96,189.9,4.65957621]
[1735012831813,7.7217872,189.96,189.89,7.7217872]
[1735012832015,4.7242,190.0,189.93,7.7217872]
[1735012832214,10.9391872,190.0,189.93,7.7217872]
[1735012832716,2.6356,189.98,189.93,7.7217872]
[1735012832915,10.9391872,190.0,189.93,7.7217872]
[1735012833712,2.6353,190.01,189.95,7.7217872]
[1735012834019,3.24,190.03,189.97,7.7217872]
[1735012834217,2.6351,190.03,189.97,7.7217872]
[1735012835119,10.3559872,190.09,190.01,7.7217872]
[1735012835912,7.7217872,190.09,190.01,7.7217872]
[1735012836114,10.3561872,190.07,189.99,15.1545872]
[1735012836415,10.3561872,190.07,189.99,12.5191872]
[1735012836613,2.6345,190.06,189.99,12.5191872]
[1735012837510,2.6345,190.06,189.99,15.1545872]
[1735012837716,10.3560872,190.08,190.01,7.7217872]
[1735012838917,10.3560872,190.08,190.02,2.6351]
[1735012840709,7.7217872,190.08,190.01,7.7217872]
[1735012841319,7.7217872,190.08,190.02,2.6349]
[1735012842020,7.7217872,190.06,190.02,2.6349]
[1735012842631,7.7217872,190.04,189.98,2.6356]
[1735012842819,7.7217872,190.01,189.95,1.5357]
[1735012843220,7.7217872,190.01,189.96,2.6358]
[1735012846020,7.7217872,189.99,189.94,5.8761]
[1735012846226,7.7217872,189.97,189.92,1.499]
[1735012846829,7.7217872,189.97,189.93,2.6363]
[1735012849032,10.3575872,189.97,189.92,1.499]
[1735012850529,10.3575872,189.97,189.92,2.6364]
[1735012851028,7.7217872,189.97,189.93,2.6363]
[1735012853329,7.7217872,189.97,189.91,7.7217872]
[1735012853536,2.6361,189.95,189.89,10.3586872]
[1735012853831,10.3578872,189.95,189.89,7.7217872]
[1735012854435,10.3578872,189.95,189.9,2.6367]
[1735012855340,7.7217872,189.95,189.85,1.6063]
[1735012855537,2.6362,189.94,189.88,7.7217872]
[1735012856442,2.6362,189.94,189.89,2.6368]
[1735012860348,2.636,189.96,189.91,2.6366]
[1735012860649,10.3577872,189.96,189.91,2.6366]
[1735012860944,7.7217872,189.96,189.92,2.6365]
[1735012861648,7.7217872,189.99,189.91,7.7217872]
[1735012861843,7.7217872,189.99,189.91,10.9617872]
[1735012862637,10.3572872,189.99,189.94,2.6362]
[1735012862943,7.7217872,189.99,189.91,10.9617872]
[1735012863143,7.7217872,190.01,189.93,7.7217872]
[1735012863339,7.7217872,190.01,189.91,3.24]
[1735012863543,7.7217872,189.99,189.92,7.7217872]
[1735012864543,10.3572872,189.99,189.94,2.6361]
[1735012866650,10.3572872,189.99,189.93,2.6363]
[1735012866850,7.7217872,189.95,189.89,3.24]
[1735012867250,7.7217872,189.95,189.9,2.6367]
[1735012867549,10.3578872,189.95,189.9,2.6367]
[1735012868050,1.6315,189.98,189.89,10.9617872]
[1735012868246,9.3532872,189.98,189.91,7.7217872]
[1735012869149,9.3532872,189.98,189.93,2.6363]
[1735012869847,11.9889872,189.98,189.93,2.6363]
[1735012870149,9.3532872,189.98,189.92,2.6364]
[1735012870349,7.7217872,189.95,189.9,3.24]
[1735012871452,10.3577872,189.95,189.9,5.8766]
[1735012871851,10.3577872,189.95,189.9,2.6366]
[1735012874048,7.7217872,189.95,189.9,2.6366]
[1735012874346,2.6362,189.94,189.9,2.6366]
[1735012875450,10.3579872,189.94,189.9,2.6366]
[1735012876254,1.6315,189.98,189.87,3.24]
[1735012876255,7.7217872,189.92,189.87,2.6371]
[1735012876554,7.7217872,189.9,189.84,61.88655136]
[1735012876756,7.7217872,189.9,189.85,4.66343907]
[1735012876949,7.7217872,189.9,189.86,2.6373]
[1735012879160,7.7217872,189.9,189.84,58.64655136]
[1735012880552,7.7217872,189.9,189.85,2.6374]
[1735012881251,2.6364,189.93,189.88,2.637]
[1735012881457,7.7217872,189.95,189.87,7.7217872]
[1735012882460,10.3578872,189.95,189.89,2.6368]
[1735012882653,7.7217872,189.93,189.89,2.6368]
[1735012886255,7.7217872,189.93,189.86,3.24]
[1735012886455,7.7217872,189.91,189.87,8.74186318]
[1735012886757,7.7217872,189.91,189.86,3.24]
[1735012887064,7.7217872,189.91,189.87,7.30946372]
[1735012887259,7.7217872,189.91,189.86,3.24]
[1735012887260,7.7217872,189.91,189.88,4.67510801]
[1735012887459,7.7217872,189.89,189.84,58.64655136]
[1735012887765,7.7217872,189.89,189.85,8.74851797]
[1735012887963,10.3587872,189.89,189.86,4.67498983]
[1735012888166,10.3587872,189.89,189.84,2.6374]
[1735012888363,10.3587872,189.89,189.85,4.67743866]
[1735012888565,7.7217872,189.89,189.81,7.7217872]
[1735012888764,2.6372,189.87,189.82,11.38885401]
[1735012888966,7.7217872,189.89,189.83,8.75115401]
[1735012889165,7.7217872,189.89,189.84,4.6764312]
[1735012889465,7.7217872,189.92,189.85,16.47241451]
[1735012889661,7.7217872,189.92,189.86,8.74962323]
[1735012889864,10.3582872,189.92,189.87,7.3135312]
[1735012890060,10.3582872,189.92,189.87,2.6371]
[1735012890458,10.3582872,189.92,189.88,4.67534366]
[1735012890765,10.3582872,189.92,189.87,2.6371]
[1735012890965,10.3582872,189.92,189.88,4.67545556]
[1735012891160,10.3582872,189.92,189.87,2.6371]
[1735012891360,10.3582872,189.92,189.88,4.67547991]
[1735012891561,10.3582872,189.92,189.87,2.6371]
[1735012891757,7.7217872,189.9,189.88,4.67553545]
[1735012891965,7.7217872,189.9,189.85,2.6373]
[1735012892164,7.7217872,189.9,189.86,8.74946849]
[1735012892465,7.7217872,189.9,189.87,8.74946849]
[1735012892662,7.7217872,189.9,189.88,4.67548496]
[1735012892862,7.7217872,189.9,189.84,3.24]
[1735012893165,7.7217872,189.9,189.85,8.74982267]
[1735012893366,7.7217872,189.9,189.86,8.74982267]
[1735012893561,7.7217872,189.9,189.87,4.6756813]
[1735012893757,7.7217872,189.9,189.88,4.6756813]
[1735012894064,7.7217872,189.9,189.86,2.6373]
[1735012894367,1.6057,189.97,189.87,16.47148294]
[1735012894569,7.7217872,189.96,189.89,7.7217872]
[1735012894763,7.7217872,189.96,189.9,4.67568917]
[1735012894967,7.7217872,189.96,189.89,7.7217872]
[1735012895167,7.7217872,189.96,189.9,4.67423624]
[1735012895369,7.7217872,189.96,189.89,7.7217872]
[1735012895570,10.3576872,189.96,189.91,2.6365]
[1735012895770,7.7217872,189.94,189.91,2.6365]
[1735012895968,2.636,189.95,189.89,7.7217872]
[1735012896167,1.6315,189.98,189.91,7.7217872]
[1735012896366,1.6315,189.98,189.92,4.67371479]
[1735012896670,1.6315,189.98,189.93,4.67371479]
[1735012896870,1.6315,189.98,189.91,7.7217872]
[1735012897072,1.6315,189.98,189.92,4.67316668]
[1735012897262,1.6315,189.98,189.91,7.7217872]
[1735012897467,1.6315,189.98,189.93,2.6363]
[1735012897873,7.7217872,189.97,189.93,2.6363]
[1735012898573,10.3578872,189.95,189.89,3.24]
[1735012898767,7.7217872,189.93,189.9,8.74613445]
[1735012898963,7.7217872,189.93,189.89,3.24]
[1735012899161,7.7217872,189.93,189.9,7.31220856]
[1735012899363,7.7217872,189.93,189.9,2.6367]
[1735012901867,7.7217872,189.93,189.91,4.67527521]
[1735012902073,7.7217872,189.93,189.9,2.6367]
[1735012902275,7.7217872,189.93,189.91,4.67519145]
[1735012902475,7.7217872,189.93,189.9,2.6367]
[1735012902878,7.7217872,189.93,189.89,3.24]
[1735012902879,2.6365,189.92,189.91,4.67500745]
[1735012903067,7.7217872,189.92,189.83,68.45872428]
[1735012903273,7.7217872,189.9,189.84,8.75082741]
[1735012903472,7.7217872,189.88,189.85,8.75082741]
[1735012903673,7.7217872,189.88,189.86,8.75082741]
[1735012903977,7.7217872,189.88,189.82,57.49693708]
[1735012904169,7.7217872,189.88,189.83,8.75324136]
[1735012904374,7.7217872,189.88,189.84,8.75324136]
[1735012904576,7.7217872,189.88,189.85,4.67752036]
[1735012904871,7.7217872,189.88,189.86,4.67752036]
[1735012905077,7.7217872,189.88,189.81,10.9617872]
[1735012905379,7.7217872,189.88,189.82,8.75265992]
[1735012905580,7.7217872,189.88,189.85,2.6374]
[1735012905776,7.7217872,189.88,189.86,4.67720504]
[1735012906077,7.7217872,189.88,189.83,2.6377]
[1735012906381,7.7217872,189.88,189.84,8.75259288]
[1735012906680,7.7217872,189.88,189.85,4.67717746]
[1735012906881,7.7217872,189.88,189.83,2.6377]
[1735012907074,7.7217872,189.88,189.84,8.75176618]
[1735012907373,7.7217872,189.88,189.83,2.6377]
[1735012907374,7.7217872,189.88,189.85,4.67673505]
[1735012907579,7.7217872,189.88,189.83,2.6377]
[1735012907775,7.7217872,189.88,189.84,4.67717109]
[1735012907977,7.7217872,189.88,189.85,4.67717109]
[1735012908185,7.7217872,189.88,189.83,2.6377]
[1735012908480,10.3587872,189.88,189.84,4.67735807]
[1735012908681,10.3587872,189.88,189.82,2.6378]
[1735012908878,10.3587872,189.88,189.83,4.67737465]
[1735012909078,10.3587872,189.88,189.84,4.67737465]
[1735012909278,7.7217872,189.86,189.59,378.06655653]
[1735012909581,7.7217872,189.83,189.78,8.75452295]
[1735012909880,7.7217872,189.83,189.79,8.75452295]
[1735012910076,3.24,189.88,189.8,4.67913981]
[1735012910273,3.24,189.88,189.8,7.7217872]
[1735012910475,7.7217872,189.86,189.81,4.67862359]
[1735012910676,7.7217872,189.86,189.8,7.7217872]
[1735012910876,7.7217872,189.86,189.81,4.67737849]
[1735012911080,7.7217872,189.86,189.8,7.7217872]
[1735012911271,7.7217872,189.86,189.81,4.67706394]
[1735012911471,7.7217872,189.86,189.8,2.638]
[1735012911680,7.7217872,189.86,189.81,4.6767199]
[1735012911979,7.7217872,189.86,189.78,7.7217872]
[1735012912175,7.7217872,189.86,189.81,2.6379]
[1735012912372,7.7217872,189.86,189.82,4.67671558]
[1735012912580,7.7217872,189.84,189.81,2.6379]
[1735012912779,7.7217872,189.84,189.82,4.6756156]
[1735012912981,10.3593872,189.84,189.79,2.6382]
[1735012913182,7.7217872,189.82,189.8,4.6762589]
[1735012913479,2.6376,189.84,189.81,4.6762589]
[1735012913676,7.7217872,189.83,189.79,2.6382]
[1735012913876,7.7217872,189.83,189.8,4.67656489]
[1735012914076,7.7217872,189.83,189.79,2.6382]
[1735012914282,7.7217872,189.83,189.8,4.67677846]
[1735012914575,7.7217872,189.81,189.73,59.08613708]
[1735012914775,7.7217872,189.81,189.74,11.79996146]
[1735012914979,7.7217872,189.81,189.75,8.7586266]
[1735012915286,7.7217872,189.81,189.76,8.7586266]
[1735012915582,7.7217872,189.81,189.77,4.68045234]
[1735012915771,7.7217872,189.81,189.74,7.7217872]
[1735012915977,7.7217872,189.81,189.75,8.75420817]
[1735012916181,7.7217872,189.81,189.76,8.75420817]
[1735012916376,7.7217872,189.81,189.77,4.67809656]
[1735012916573,10.3600872,189.79,189.73,2.6391]
[1735012916881,3.24,189.88,189.76,7.7217872]
[1735012917080,7.7217872,189.83,189.77,4.67776258]
[1735012917284,2.6376,189.84,189.77,2.6384]
[1735012917484,7.7217872,189.83,189.77,2.6384]
[1735012921078,7.7217872,189.81,189.75,2.6387]
[1735012921280,7.7217872,189.81,189.76,4.67658696]
[1735012921480,7.7217872,189.81,189.77,4.67737689]
[1735012921677,7.7217872,189.81,189.77,2.6384]
[1735012922779,7.7217872,189.81,189.78,2.6384]
[1735012932088,3.24,189.88,189.78,7.7217872]
[1735012932290,7.7217872,189.85,189.78,7.7217872]
[1735012932588,7.7217872,189.85,189.81,2.6379]
[1735012933087,7.7217872,189.85,189.8,2.6381]
[1735012934387,7.7217872,189.83,189.78,2.6383]
[1735012934583,7.7217872,189.81,189.78,2.6383]
[1735012936092,7.7217872,189.83,189.76,10.9617872]
[1735012936291,7.7217872,189.83,189.76,3.24]
[1735012936592,7.7217872,189.83,189.76,10.9617872]
[1735012936985,7.7217872,189.83,189.8,2.638]
[1735012937192,7.7217872,189.83,189.76,10.9617872]
[1735012937392,2.6374,189.86,189.78,7.7217872]
[1735012937593,10.3591872,189.85,189.8,2.638]
[1735012940195,7.7217872,189.83,189.8,2.638]
[1735012940697,7.7217872,189.83,189.76,10.9617872]
[1735012940895,7.7217872,189.83,189.78,2.6384]
[1735012942395,10.3594872,189.83,189.78,2.6384]
[1735012942695,7.7217872,189.83,189.79,2.6383]
[1735012942896,3.24,189.88,189.77,7.7217872]
[1735012943196,3.1874,189.91,189.79,7.7217872]
[1735012943391,7.7217872,189.88,189.83,2.6377]
[1735012944295,7.7217872,189.88,189.84,2.6374]
[1735012944693,7.7217872,189.88,189.81,7.7217872]
[1735012944999,10.3587872,189.88,189.82,2.6377]
[1735012945495,7.7217872,189.86,189.79,3.24]
[1735012945690,7.7217872,189.84,189.8,7.3215268]
[1735012945896,7.7217872,189.84,189.81,4.6834268]
[1735012946094,7.7217872,189.84,189.8,2.6381]
[1735012946293,7.7217872,189.84,189.81,4.68313791]
[1735012946495,7.7217872,189.84,189.8,2.6381]
[1735012946698,7.7217872,189.84,189.81,4.68533637]
[1735012946897,7.7217872,189.84,189.8,2.6381]
[1735012947096,7.7217872,189.84,189.81,4.68569735]
[1735012947296,7.7217872,189.84,189.8,2.6381]
[1735012947601,7.7217872,189.84,189.81,4.68613805]
[1735012947791,7.7217872,189.84,189.8,2.6381]
[1735012947995,7.7217872,189.84,189.81,4.68923881]
[1735012948195,7.7217872,189.84,189.8,2.6381]
[1735012949102,7.7217872,189.84,189.79,3.24]
[1735012949303,10.3593872,189.84,189.8,4.68875589]
[1735012949501,10.3593872,189.84,189.79,5.8782]
[1735012949803,10.3593872,189.84,189.8,4.6910744]
[1735012950100,10.3593872,189.84,189.79,5.8782]
[1735012950303,10.3593872,189.84,189.8,4.69283531]
[1735012950304,2.6377,189.83,189.8,4.69283531]
[1735012950501,2.6377,189.83,189.79,2.6382]
[1735012950800,2.6377,189.83,189.8,4.6944116]
[1735012951001,2.6377,189.83,189.79,2.6382]
[1735012951201,7.7217872,189.84,189.8,4.69475512]
[1735012951501,7.7217872,189.84,189.79,2.6382]
[1735012951696,7.7217872,189.84,189.8,4.69615385]
[1735012951904,7.7217872,189.84,189.79,2.6382]
[1735012952103,7.7217872,189.84,189.8,4.69612472]
[1735012952401,7.7217872,189.84,189.79,2.6382]
[1735012952604,3.1874,189.91,189.81,2.6379]
[1735012952903,7.7217872,189.87,189.82,8.78881096]
[1735012953104,3.1874,189.91,189.81,7.7217872]
[1735012953105,3.1874,189.91,189.83,4.6967985]
[1735012953298,7.7217872,189.88,189.84,4.69611542]
[1735012953598,7.7217872,189.88,189.81,7.7217872]
[1735012953804,7.7217872,189.88,189.82,8.78830087]
[1735012954001,7.7217872,189.88,189.83,8.78830087]
[1735012954198,2.6369,189.89,189.84,4.69655988]
[1735012954500,7.7217872,189.88,189.83,2.6376]
[1735012954704,7.7217872,189.88,189.84,4.69444692]
[1735012954901,7.7217872,189.88,189.83,2.6376]
[1735012955104,7.7217872,189.88,189.84,4.69428968]
[1735012955305,7.7217872,189.88,189.83,2.6376]
[1735012955501,7.7217872,189.88,189.84,4.69426292]
[1735012955701,7.7217872,189.88,189.83,2.6376]
[1735012955902,7.7217872,189.88,189.84,4.69382294]
[1735012956205,7.7217872,189.88,189.83,2.6376]
[1735012956604,7.7217872,189.88,189.84,4.69425561]
[1735012956800,7.7217872,189.88,189.83,2.6376]
[1735012957105,7.7217872,189.88,189.84,4.69395548]
[1735012957305,7.7217872,189.88,189.83,2.6376]
[1735012957505,7.7217872,189.88,189.84,4.69390008]
[1735012957705,7.7217872,189.88,189.83,2.6376]
[1735012958006,7.7217872,189.88,189.84,4.69368162]
[1735012958308,10.3588872,189.88,189.83,2.6376]
[1735012958496,1.5855,189.91,189.84,7.33104342]
[1735012958701,10.3585872,189.9,189.85,4.69354342]
[1735012958903,10.3585872,189.9,189.84,2.6375]
[1735012959098,10.3585872,189.9,189.85,4.69211275]
[1735012959302,10.3585872,189.9,189.84,2.6375]
[1735012960004,2.6366,189.92,189.86,2.6372]
[1735012960209,2.6366,189.92,189.87,12.41180425]
[1735012960407,2.6366,189.92,189.87,7.7217872]
[1735012961007,7.7217872,189.93,189.87,7.7217872]
[1735012962513,7.7217872,189.93,189.88,2.6369]
[1735012970823,10.3578872,189.95,189.9,2.6367]
[1735012971027,7.7217872,189.95,189.9,2.6367]
[1735012971525,2.6362,189.94,189.88,2.6369]
[1735012971727,7.7217872,189.95,189.87,7.7217872]
[1735012973528,10.3578872,189.95,189.89,2.6367]
[1735012974930,2.6361,189.95,189.89,2.6367]
[1735012975129,3.3461295,189.96,189.89,7.7217872]
[1735012975927,11.0679167,189.96,189.86,1.6469]
[1735012976128,11.0679167,189.96,189.88,7.7217872]
[1735012977328,2.6362,189.95,189.9,2.6367]
[1735012977533,7.7217872,189.94,189.86,1.6469]
[1735012977737,7.7217872,189.94,189.87,7.7217872]
[1735012978436,2.6364,189.93,189.88,2.6369]
[1735012979533,3.3461295,189.96,189.87,7.7217872]
[1735012979534,10.3582872,189.92,189.87,10.3588872]
[1735012981940,2.6363,189.93,189.88,2.637]
[1735012982941,10.3582872,189.92,189.87,2.6371]
[1735012984135,7.7217872,189.9,189.86,2.6373]
[1735012984941,10.3583872,189.91,189.86,2.6373]
[1735012985442,7.7217872,189.89,189.86,2.6373]
[1735012986438,7.7217872,189.89,189.84,2.6374]
[1735012987136,10.3586872,189.89,189.84,2.6374]
[1735012990141,7.7217872,189.87,189.8,7.7217872]
[1735012991542,2.6373,189.86,189.81,2.6379]
[1735012992142,7.7217872,189.87,189.8,7.7217872]
[1735012992340,10.3589872,189.87,189.82,2.6378]
[1735012993145,2.637,189.88,189.82,2.6378]
[1735012993338,10.3587872,189.88,189.82,2.6378]
[1735012994144,2.6369,189.9,189.85,2.6374]
[1735012994350,10.3586872,189.9,189.85,2.6374]
[1735012994546,7.7217872,189.9,189.85,2.6374]
[1735012996447,10.3585872,189.9,189.85,2.6374]
[1735012996849,2.6368,189.9,189.85,2.6374]
[1735012997051,10.3585872,189.9,189.85,2.6374]
[1735012998355,7.7217872,189.88,189.82,7.7217872]
[1735012998556,7.7217872,189.86,189.8,7.7217872]
[1735012998756,7.7217872,189.86,189.78,11.0217872]
[1735012998946,7.7217872,189.86,189.79,8.77002238]
[1735012999153,7.7217872,189.86,189.8,4.68653701]
[1735012999356,7.7217872,189.86,189.78,11.0217872]
[1735012999552,10.3590872,189.86,189.81,2.638]
[1735013004057,7.7217872,189.86,189.79,7.7217872]
[1735013004255,10.3593872,189.84,189.79,2.6382]
[1735013005459,2.638,189.81,189.76,2.6386]
[1735013005659,7.7217872,189.82,189.74,7.7217872]
[1735013005863,7.7217872,189.82,189.75,4.6815988]
[1735013006059,7.7217872,189.82,189.74,7.7217872]
[1735013006456,2.6381,189.8,189.75,2.6388]